bitfinex/quotes_BTCUSD_20251116
["timestamp","ask_amount","ask_price","bid_price","bid_amount"]
[1763254622458,0.20915907,95621.0,95620.0,0.05633409]
[1763254622869,0.22510907,95621.0,95620.0,0.05633409]
[1763254623304,0.22510907,95621.0,95612.0,0.04341874]
[1763254623305,0.01595,95621.0,95614.0,0.05633409]
[1763254623516,0.2091638,95619.0,95618.0,0.03752343]
[1763254624360,0.2091638,95619.0,95617.0,0.03752343]
[1763254624589,0.0395,95621.0,95619.0,0.20916301]
[1763254624591,0.02355,95621.0,95619.0,0.20916301]
[1763254624787,0.02355,95621.0,95620.0,0.20916126]
[1763254625292,0.2327092,95621.0,95618.0,0.20916543]
[1763254625494,0.02355,95621.0,95617.0,0.00675]
[1763254625703,0.20916563,95618.0,95617.0,0.00675]
[1763254625903,0.20916563,95618.0,95616.0,0.03752343]
[1763254626125,0.20916782,95617.0,95616.0,0.03752343]
[1763254626337,0.31399695,95617.0,95616.0,0.03752343]
[1763254626555,0.2091722,95615.0,95613.0,0.03752343]
[1763254626784,0.20918751,95608.0,95606.0,0.03752343]
[1763254627210,0.20919845,95603.0,95600.0,0.03752343]
[1763254627416,0.2092072,95599.0,95598.0,0.03752343]
[1763254627640,0.2251572,95599.0,95597.0,0.03752343]
[1763254627847,0.2092072,95599.0,95597.0,0.03756853]
[1763254628067,0.02725,95598.0,95597.0,0.03756853]
[1763254628278,0.02725,95598.0,95597.0,4.51e-05]
[1763254628899,0.02725,95598.0,95597.0,0.02816218]
[1763254629333,0.02725,95598.0,95597.0,4.51e-05]
[1763254633137,0.05536708,95598.0,95597.0,4.51e-05]
[1763254633590,0.03941708,95598.0,95597.0,4.51e-05]
[1763254634271,0.24862647,95598.0,95597.0,4.51e-05]
[1763254635502,0.26502647,95598.0,95597.0,4.51e-05]
[1763254636946,0.05581708,95598.0,95597.0,4.51e-05]
[1763254637358,0.26502647,95598.0,95597.0,4.51e-05]
[1763254654342,0.28461616,95598.0,95597.0,4.51e-05]
[1763254655323,0.25691616,95598.0,95597.0,4.51e-05]
[1763254658896,0.25691616,95598.0,95597.0,0.0185451]
[1763254660330,0.25691616,95598.0,95597.0,0.04671644]
[1763254660550,0.25691616,95598.0,95597.0,0.02821644]
[1763254660936,0.25691616,95598.0,95597.0,4.51e-05]
[1763254661265,0.25691616,95598.0,95597.0,0.02821644]
[1763254662191,0.25691616,95598.0,95597.0,4.51e-05]
[1763254662310,0.25695973,95598.0,95597.0,0.02821644]
[1763254663429,0.25695973,95598.0,95597.0,0.04917644]
[1763254663631,0.25695973,95598.0,95597.0,0.02821644]
[1763254670256,0.15622598,95598.0,95595.0,0.02821832]
[1763254670456,0.15622598,95598.0,95582.0,0.00145123]
[1763254670457,0.20924222,95583.0,95582.0,0.00145123]
[1763254670656,0.25644548,95583.0,95582.0,0.00158662]
[1763254670856,0.26030836,95583.0,95582.0,0.00158662]
[1763254672354,0.34918749,95583.0,95582.0,0.00158662]
[1763254673694,0.45285687,95583.0,95582.0,0.00158662]
[1763254675337,0.46808687,95583.0,95582.0,0.00158662]
[1763254678669,0.36441749,95583.0,95582.0,0.00158662]
[1763254680066,0.36437161,95583.0,95582.0,0.00158662]
[1763254680283,0.38815161,95583.0,95582.0,0.00158662]
[1763254683169,0.36851835,95583.0,95582.0,0.00158662]
[1763254696108,0.38810425,95583.0,95582.0,0.00158662]
[1763254697391,0.38811155,95583.0,95582.0,0.00158662]
[1763254699059,0.34910155,95583.0,95582.0,0.00158662]
[1763254699228,0.31766867,95583.0,95582.0,0.00158662]
[1763254699582,0.29807547,95583.0,95582.0,0.00158662]
[1763254700161,0.31771307,95583.0,95582.0,0.00158662]
[1763254704231,0.29807547,95583.0,95582.0,0.00158662]
[1763254711407,0.41018187,95583.0,95582.0,0.00158662]
[1763254711613,0.42980463,95583.0,95582.0,0.00158662]
[1763254711820,0.45401463,95583.0,95582.0,0.00158662]
[1763254712777,0.77701463,95583.0,95582.0,0.00158662]
[1763254717643,0.7770161,95583.0,95582.0,0.00158662]
[1763254721077,0.7770161,95583.0,95542.0,0.03752343]
[1763254721078,0.323,95552.0,95542.0,0.03752343]
[1763254721294,0.20934516,95536.0,95532.0,0.03752343]
[1763254721505,0.22038612,95531.0,95521.0,0.01186]
[1763254721707,0.22038612,95531.0,95530.0,0.00044512]
[1763254722545,0.23224612,95531.0,95530.0,0.00044512]
[1763254722967,0.01186,95531.0,95530.0,0.00044512]
[1763254723189,0.2093364,95540.0,95539.0,0.02705]
[1763254723619,0.29821553,95540.0,95539.0,0.01055]
[1763254724738,0.20935393,95532.0,95531.0,0.02496]
[1763254724913,0.20934909,95535.0,95531.0,0.02496]
[1763254724914,0.08887913,95540.0,95531.0,0.02496]
[1763254725073,0.24076337,95547.0,95539.0,0.01055]
[1763254725276,0.20933477,95541.0,95539.0,0.01055]
[1763254725500,0.20933477,95541.0,95540.0,0.02496]
[1763254726969,0.40141215,95570.0,95541.0,0.04341874]
[1763254727174,0.40141215,95570.0,95555.0,0.0165]
[1763254727175,0.29817897,95557.0,95555.0,0.0165]
[1763254727320,0.08887913,95557.0,95556.0,0.03583]
[1763254727727,0.20931449,95550.0,95549.0,0.0112]
[1763254727927,0.20931256,95551.0,95549.0,0.0112]
[1763254730410,0.20931256,95551.0,95549.0,0.01115246]
[1763254730614,0.06164203,95550.0,95531.0,0.05309087]
[1763254730832,0.39094862,95541.0,95532.0,0.04341874]
[1763254731033,0.20934416,95537.0,95533.0,0.02496]
[1763254731183,0.20934779,95535.0,95533.0,0.02496]
[1763254731794,0.29821159,95542.0,95533.0,0.02496]
[1763254731995,0.29821159,95542.0,95540.0,0.00114902]
[1763254732211,0.29821159,95542.0,95533.0,0.02496]
[1763254732212,0.20934332,95537.0,95533.0,0.02496]
[1763254732411,0.08887913,95542.0,95541.0,0.01183165]
[1763254732599,0.08887913,95542.0,95541.0,0.02833165]
[1763254733644,0.08887913,95542.0,95541.0,0.00112165]
[1763254733645,0.18699494,95542.0,95541.0,0.00112165]
[1763254734149,0.17193494,95542.0,95541.0,0.00112165]
[1763254734530,0.16056494,95542.0,95541.0,0.00112165]
[1763254735210,0.08887913,95542.0,95541.0,0.00112165]
[1763254736249,0.10393913,95542.0,95541.0,0.00112165]
[1763254738445,0.12027815,95542.0,95541.0,0.00112165]
[1763254740472,0.10521815,95542.0,95541.0,0.00112165]
[1763254741115,0.12027815,95542.0,95541.0,0.00112165]
[1763254742428,0.10521815,95542.0,95541.0,0.00112165]
[1763254742648,0.09974913,95542.0,95541.0,0.00112165]
[1763254743064,0.11599913,95542.0,95541.0,0.00112165]
[1763254743272,0.18877194,95542.0,95541.0,0.00112165]
[1763254743714,0.17790194,95542.0,95541.0,0.00112165]
[1763254744839,0.10512913,95542.0,95541.0,0.00112165]
[1763254746334,0.12470477,95542.0,95541.0,0.00112165]
[1763254747954,0.13017374,95542.0,95541.0,0.00112165]
[1763254749218,0.33950576,95542.0,95541.0,0.00112165]
[1763254751420,0.35092576,95542.0,95541.0,0.00112165]
[1763254751788,0.44881688,95542.0,95541.0,0.00112165]
[1763254753522,0.77181688,95542.0,95541.0,0.00112165]
[1763254760612,0.67392576,95542.0,95541.0,0.00112165]
[1763254766559,0.31778679,95542.0,95541.0,0.00112165]
[1763254768563,0.33306679,95542.0,95541.0,0.00112165]
[1763254770038,0.31778679,95542.0,95541.0,0.00112165]
[1763254772697,0.33432679,95542.0,95541.0,0.00112165]
[1763254772921,0.43713399,95542.0,95541.0,0.00112165]
[1763254774287,0.33979577,95542.0,95541.0,0.00112165]
[1763254774742,0.66279577,95542.0,95541.0,0.00112165]
[1763254788402,0.66279577,95542.0,95541.0,1e-08]
[1763254788629,0.66279577,95542.0,95530.0,0.00044512]
[1763254788630,0.53235612,95531.0,95530.0,0.00044512]
[1763254788815,0.65401199,95531.0,95530.0,0.00044512]
[1763254789462,0.65820589,95531.0,95530.0,0.00074614]
[1763254792369,0.58403566,95531.0,95530.0,0.00074614]
[1763254796315,0.58403566,95531.0,95500.0,0.0004]
[1763254796316,0.53239996,95511.0,95500.0,0.0004]
[1763254796523,0.29832295,95491.0,95490.0,0.0004]
[1763254796732,0.29832295,95491.0,95480.0,0.0004]
[1763254796733,0.20946575,95481.0,95480.0,0.0004]
[1763254796930,0.23758575,95481.0,95480.0,0.0008521]
[1763254797161,0.56058575,95481.0,95480.0,0.0008521]
[1763254799124,0.58013788,95481.0,95480.0,0.0008521]
[1763254799260,0.59114788,95481.0,95480.0,0.0008521]
[1763254799717,0.69215457,95481.0,95480.0,0.0008521]
[1763254802729,0.69215457,95481.0,95480.0,1e-08]
[1763254802939,0.20953159,95451.0,95450.0,0.0004]
[1763254803155,0.20953159,95451.0,95450.0,0.00044513]
[1763254803156,0.55683159,95451.0,95450.0,0.00044513]
[1763254803398,0.64571072,95451.0,95450.0,0.00044513]
[1763254803610,0.64571072,95451.0,95450.0,0.00263635]
[1763254804478,0.7493801,95451.0,95450.0,0.00263635]
[1763254805377,0.02831,95411.0,95391.0,0.03752343]
[1763254805595,0.02831,95411.0,95380.0,0.0004]
[1763254805596,0.53268536,95381.0,95380.0,0.0004]
[1763254805812,0.53268536,95381.0,95370.0,0.0004]
[1763254805813,0.20970661,95372.0,95370.0,0.0004]
[1763254806041,0.46652083,95380.0,95370.0,0.00085227]
[1763254806042,0.22175735,95371.0,95370.0,0.00085227]
[1763254806705,0.23793735,95371.0,95370.0,0.00085227]
[1763254806911,0.65652882,95371.0,95370.0,0.00085227]
[1763254807119,0.67592533,95371.0,95370.0,0.00085227]
[1763254807336,0.58033386,95371.0,95370.0,0.00085227]
[1763254808384,0.56093735,95371.0,95370.0,0.00085227]
[1763254813924,0.56093735,95371.0,95370.0,0.00045227]
[1763254814132,0.53272934,95361.0,95350.0,0.0004]
[1763254814312,0.53275133,95351.0,95350.0,0.0004]
[1763254814513,0.55622133,95351.0,95350.0,0.00044512]
[1763254814940,0.55622133,95351.0,95350.0,0.00318817]
[1763254819283,0.53277333,95341.0,95340.0,0.0004]
[1763254819495,0.54812333,95341.0,95340.0,0.00046615]
[1763254819915,0.54812333,95341.0,95340.0,0.00074062]
[1763254821239,0.20982836,95316.0,95315.0,9e-05]
[1763254821440,0.32618749,95316.0,95315.0,0.00022549]
[1763254821657,0.64918749,95316.0,95315.0,0.00022549]
[1763254822291,0.64918749,95316.0,95280.0,0.01049538]
[1763254822292,0.01049428,95290.0,95274.0,0.01081]
[1763254822517,0.47701511,95290.0,95274.0,0.0112623]
[1763254822729,0.20989159,95288.0,95276.0,0.20991537]
[1763254822941,0.00812,95289.0,95279.0,0.20990948]
[1763254823158,0.20991201,95279.0,95274.0,0.0112623]
[1763254823374,0.08887913,95278.0,95274.0,0.0112623]
[1763254823586,0.08887913,95278.0,95274.0,0.0062623]
[1763254823828,0.20991862,95276.0,95274.0,0.0062623]
[1763254824038,0.08887913,95278.0,95274.0,0.0062623]
[1763254824261,0.2098701,95298.0,95284.0,0.20989745]
[1763254824481,0.01049317,95300.0,95275.0,0.02463]
[1763254824482,0.08887913,95293.0,95292.0,0.01587]
[1763254824696,0.2098812,95292.0,95282.0,0.02463]
[1763254824905,0.2098812,95292.0,95278.0,0.20991013]
[1763254825113,0.08887913,95277.0,95275.0,0.20991749]
[1763254825320,0.46652083,95290.0,95274.0,0.0062623]
[1763254825522,0.01237,95291.0,95281.0,0.20990535]
[1763254825971,0.22225494,95291.0,95282.0,0.01081]
[1763254826166,0.01237,95291.0,95283.0,0.20990103]
[1763254826576,0.01237,95291.0,95260.0,0.01049758]
[1763254826803,0.11659913,95275.0,95274.0,0.0004523]
[1763254827717,0.32651778,95275.0,95274.0,0.0004523]
[1763254828558,0.11659913,95275.0,95274.0,0.0004523]
[1763254828774,0.10124913,95275.0,95274.0,0.0004523]
[1763254829190,0.11659913,95275.0,95274.0,0.0004523]
[1763254829396,0.32651778,95275.0,95274.0,0.0004523]
[1763254829844,0.08887913,95275.0,95274.0,0.0004523]
[1763254830364,0.10422913,95275.0,95274.0,0.0004523]
[1763254831212,0.08887913,95275.0,95274.0,0.0004523]
[1763254831677,0.20987868,95294.0,95283.0,0.02746]
[1763254831898,0.477014,95300.0,95283.0,0.02746]
[1763254832145,0.20990881,95280.0,95274.0,0.0004523]
[1763254832351,0.08887913,95275.0,95274.0,0.0004523]
[1763254832566,0.10420913,95275.0,95274.0,0.0004523]
[1763254833001,0.10420913,95275.0,95274.0,0.0022652]
[1763254833629,0.50181615,95275.0,95274.0,0.0022652]
[1763254833835,0.52667331,95275.0,95274.0,0.0022652]
[1763254834246,0.45206629,95275.0,95274.0,0.0022652]
[1763254839548,0.44658179,95275.0,95274.0,0.0022652]
[1763254840175,0.44666086,95275.0,95274.0,0.0022652]
[1763254841930,0.65657951,95275.0,95274.0,0.0232452]
[1763254845269,0.22530154,95251.0,95222.0,4.31907331]
[1763254845474,0.21003329,95223.0,95222.0,4.34005331]
[1763254845680,0.22953568,95223.0,95222.0,4.34005331]
[1763254845884,0.01950239,95223.0,95222.0,4.34005331]
[1763254846118,0.01950239,95224.0,95222.0,4.34005331]
[1763254846318,0.01950239,95223.0,95222.0,4.34005331]
[1763254846530,0.01950126,95223.0,95222.0,4.34005331]
[1763254846747,0.08887913,95244.0,95231.0,0.01665]
[1763254846951,0.01950472,95243.0,95232.0,0.01665]
[1763254847162,0.01950472,95242.0,95233.0,0.21001123]
[1763254847370,0.00044933,95251.0,95233.0,0.21001123]
[1763254847371,0.01950472,95241.0,95237.0,0.20999867]
[1763254847585,0.08887913,95249.0,95238.0,0.03301002]
[1763254847793,0.01951269,95248.0,95238.0,0.01201]
[1763254847996,0.2294914,95248.0,95239.0,0.02289]
[1763254848206,0.21002226,95228.0,95227.0,0.01201]
[1763254848414,0.21003329,95223.0,95222.0,4.31907331]
[1763254848618,0.01951855,95223.0,95222.0,4.31907331]
[1763254848827,0.323,95241.0,95222.0,4.31907331]
[1763254849028,0.01191,95248.0,95222.0,4.31907331]
[1763254849029,0.01952138,95240.0,95232.0,0.2100115]
[1763254849238,0.02702,95233.0,95222.0,4.31907331]
[1763254849442,0.01952138,95232.0,95223.0,0.02289]
[1763254849674,0.01952138,95231.0,95227.0,0.21002433]
[1763254849894,0.01952138,95230.0,95224.0,0.21003108]
[1763254850099,0.01952138,95229.0,95223.0,0.02289]
[1763254850308,0.21002917,95225.0,95222.0,4.31907331]
[1763254850530,0.229571,95224.0,95222.0,4.31907331]
[1763254850733,0.01953974,95223.0,95222.0,4.31907331]
[1763254851191,0.10841887,95223.0,95222.0,4.31907331]
[1763254851393,0.10841887,95223.0,95222.0,4.32050293]
[1763254852053,0.01953974,95223.0,95222.0,4.53053842]
[1763254852924,0.00044933,95251.0,95231.0,0.01665]
[1763254853126,0.00044933,95251.0,95248.0,0.02487]
[1763254853339,0.10843689,95249.0,95248.0,0.02487]
[1763254853538,0.10843689,95249.0,95248.0,0.00822]
[1763254853688,0.20997996,95248.0,95240.0,0.01201]
[1763254853888,0.22954014,95247.0,95240.0,0.01201]
[1763254854121,0.20998477,95245.0,95240.0,0.01201]
[1763254854369,0.22954654,95244.0,95240.0,0.01201]
[1763254854578,0.22954913,95243.0,95240.0,0.01201]
[1763254854707,0.01955776,95242.0,95240.0,0.01201]
[1763254854904,0.01955776,95241.0,95240.0,0.01201]
[1763254857004,0.01955776,95241.0,95231.0,0.03752343]
[1763254857005,0.21001344,95232.0,95231.0,0.03752343]
[1763254857343,0.21001541,95232.0,95223.0,0.02289]
[1763254857564,0.209998,95241.0,95223.0,0.02289]
[1763254857771,0.01191,95242.0,95223.0,0.02289]
[1763254857772,0.21000283,95237.0,95225.0,0.2100288]
[1763254857975,0.21001057,95234.0,95225.0,0.21002701]
[1763254858190,0.21002887,95225.0,95224.0,0.02289]
[1763254858399,0.21003329,95223.0,95220.0,0.01250069]
[1763254858783,0.21003329,95223.0,95222.0,4.32050293]
[1763254859018,0.22536329,95223.0,95222.0,4.32050293]
[1763254859440,0.21003329,95223.0,95222.0,4.32050293]
[1763254859660,0.22536329,95223.0,95222.0,4.32050293]
[1763254859869,0.21003329,95223.0,95222.0,4.32050293]
[1763254860086,0.08887913,95224.0,95222.0,4.32050293]
[1763254860277,0.21003329,95223.0,95222.0,4.31907331]
[1763254860487,0.01191,95242.0,95223.0,0.02289]
[1763254860693,0.01191,95242.0,95231.0,0.02866]
[1763254860897,0.323,95248.0,95231.0,0.02866]
[1763254861107,0.01049868,95250.0,95241.0,0.01201]
[1763254861524,0.41187913,95249.0,95241.0,0.01201]
[1763254861730,0.08887913,95249.0,95242.0,0.02426]
[1763254861940,0.20998882,95244.0,95241.0,0.01201]
[1763254862150,0.20999139,95242.0,95241.0,0.01201]
[1763254862916,0.01589,95242.0,95223.0,0.03752343]
[1763254863120,0.01589,95242.0,95220.0,0.01250069]
[1763254863121,0.21003329,95223.0,95220.0,0.01250069]
[1763254864179,0.22592329,95223.0,95220.0,0.01250069]
[1763254865020,0.21003329,95223.0,95220.0,0.01250069]
[1763254865430,0.08887913,95224.0,95220.0,0.01250069]
[1763254865660,0.08887913,95224.0,95223.0,0.02426]
[1763254866457,0.08887913,95224.0,95222.0,4.3473639]
[1763254866655,0.21003329,95223.0,95222.0,4.3473639]
[1763254867459,0.21003329,95223.0,95222.0,4.31907331]
[1763254867631,0.22592329,95223.0,95222.0,4.31907331]
[1763254869060,0.24549914,95223.0,95222.0,4.31907331]
[1763254869522,0.56849914,95223.0,95222.0,4.31907331]
[1763254871451,0.55260914,95223.0,95222.0,4.31907331]
[1763254871663,0.01957585,95223.0,95222.0,4.31907331]
[1763254871874,0.01957585,95223.0,95222.0,4.32050293]
[1763254872088,0.01644868,95250.0,95222.0,4.32050293]
[1763254872296,0.01957072,95248.0,95233.0,0.21001064]
[1763254872537,0.08887913,95234.0,95233.0,0.21001123]
[1763254872744,0.08887913,95234.0,95233.0,0.02261723]
[1763254875227,0.21000903,95234.0,95233.0,0.02261723]
[1763254875448,0.22147903,95234.0,95233.0,0.02261723]
[1763254875667,0.32994247,95234.0,95233.0,0.02261723]
[1763254876606,0.34599247,95234.0,95233.0,0.02261723]
[1763254877108,0.67984776,95234.0,95233.0,0.02261723]
[1763254877325,0.67984776,95234.0,95220.0,0.01250069]
[1763254877326,0.21003329,95223.0,95220.0,0.01250069]
[1763254877537,0.2456676,95223.0,95222.0,4.34170923]
[1763254877746,0.65624256,95223.0,95222.0,4.31907331]
[1763254877953,0.5686676,95223.0,95222.0,4.31907331]
[1763254880899,0.5526176,95223.0,95222.0,4.31907331]
[1763254881159,0.53303329,95223.0,95222.0,4.31907331]
[1763254881610,0.323,95233.0,95231.0,0.00819]
[1763254881829,0.08887913,95234.0,95233.0,0.02098]
[1763254882731,0.31035816,95234.0,95233.0,0.02098]
[1763254882943,0.21003108,95224.0,95223.0,0.02098]
[1763254883139,0.21003108,95224.0,95223.0,0.04360343]
[1763254883762,0.54908108,95224.0,95223.0,0.04360343]
[1763254883977,0.65275046,95224.0,95223.0,0.02098]
[1763254885089,0.54908108,95224.0,95223.0,0.02098]
[1763254885955,0.323,95223.0,95222.0,4.31907331]
[1763254886175,0.35862967,95223.0,95222.0,4.31907331]
[1763254887721,0.323,95223.0,95222.0,4.31907331]
[1763254887935,0.53303329,95223.0,95222.0,4.31907331]
[1763254889088,0.54908329,95223.0,95222.0,4.31907331]
[1763254889524,0.69536191,95223.0,95222.0,3.17540043]
[1763254889737,0.69536191,95223.0,95222.0,1.52707064]
[1763254889951,0.69536191,95223.0,95222.0,0.82757064]
[1763254889952,0.64364613,95223.0,95222.0,0.82757064]
[1763254890352,0.64364613,95223.0,95222.0,0.35371579]
[1763254890591,0.64364613,95223.0,95222.0,0.07881496]
[1763254890808,0.64364613,95223.0,95200.0,0.961522]
[1763254890809,0.08887913,95201.0,95200.0,0.961522]
[1763254891023,0.6575931,95201.0,95200.0,0.961522]
[1763254892078,0.65804215,95201.0,95200.0,0.961522]
[1763254892306,0.70146089,95201.0,95200.0,0.961522]
[1763254892521,0.70146089,95201.0,95200.0,0.33103682]
[1763254892733,0.70146089,95201.0,95200.0,0.12616726]
[1763254893190,0.70146089,95201.0,95170.0,0.0004]
[1763254893191,0.25353146,95187.0,95170.0,0.0004]
[1763254893411,0.61219361,95187.0,95170.0,0.0004]
[1763254893865,0.61640362,95187.0,95170.0,0.0004]
[1763254895198,0.24577487,95187.0,95170.0,0.0004]
[1763254895423,0.2101116,95188.0,95186.0,0.00209]
[1763254895637,0.01608,95187.0,95186.0,0.00209]
[1763254895854,0.2101116,95188.0,95186.0,0.00209]
[1763254896070,0.08887913,95195.0,95186.0,9e-05]
[1763254896530,0.00044905,95201.0,95194.0,0.01503]
[1763254897004,0.21053088,95201.0,95187.0,0.23483113]
[1763254897446,0.00044905,95201.0,95188.0,0.02472]
[1763254897665,0.00044905,95201.0,95200.0,0.01503]
[1763254897887,0.00044905,95201.0,95199.0,0.21008513]
[1763254898313,0.00044905,95201.0,95200.0,0.02098]
[1763254898530,0.00044905,95201.0,95200.0,0.06824241]
[1763254898958,0.00044905,95201.0,95200.0,0.04352241]
[1763254899380,0.00044905,95201.0,95200.0,0.25360644]
[1763254899790,0.00044905,95201.0,95200.0,0.04352241]
[1763254900633,0.00044905,95201.0,95200.0,0.04452241]
[1763254900840,0.00044905,95201.0,95200.0,0.08794115]
[1763254901048,0.00044905,95201.0,95200.0,0.08694115]
[1763254901257,0.00044905,95201.0,95200.0,0.08794115]
[1763254901428,0.00044905,95201.0,95200.0,0.08694115]
[1763254901810,0.00044905,95201.0,95200.0,0.06696115]
[1763254902009,0.00044905,95201.0,95200.0,0.06596115]
[1763254902425,0.00044905,95201.0,95200.0,0.1163763]
[1763254902625,0.00044905,95201.0,95200.0,0.14466678]
[1763254903066,0.00044905,95201.0,95200.0,0.1163763]
[1763254903636,0.00044905,95201.0,95200.0,0.4383763]
[1763254903847,0.00044905,95201.0,95200.0,0.02254241]
[1763254904080,0.00044905,95201.0,95200.0,0.06696115]
[1763254904736,0.00044905,95201.0,95200.0,0.10354288]
[1763254904914,0.00044905,95201.0,95200.0,0.06596115]
[1763254905125,0.00044905,95201.0,95200.0,0.1173763]
[1763254905346,0.00044905,95201.0,95200.0,0.1153763]
[1763254905563,0.00044905,95201.0,95200.0,0.02255263]
[1763254905773,0.00044905,95201.0,95200.0,0.06114153]
[1763254906008,0.00044905,95201.0,95200.0,0.02355263]
[1763254906952,0.00044905,95201.0,95200.0,0.02255263]
[1763254907164,0.00044905,95201.0,95200.0,0.02455263]
[1763254907374,0.00044905,95201.0,95200.0,0.02255263]
[1763254907778,0.00044905,95201.0,95200.0,0.02355263]
[1763254908014,0.00044905,95201.0,95200.0,0.02255263]
[1763254908281,0.00044905,95201.0,95200.0,0.02355263]
[1763254908698,0.00044905,95201.0,95200.0,0.06697137]
[1763254909116,0.00044905,95201.0,95200.0,0.08797977]
[1763254909328,0.00044905,95201.0,95200.0,0.11860114]
[1763254909560,0.00044905,95201.0,95200.0,0.06697137]
[1763254909779,0.00044905,95201.0,95200.0,0.45633242]
[1763254909993,0.46632571,95260.0,95220.0,0.01050199]
[1763254910212,0.20996376,95255.0,95224.0,0.07161115]
[1763254910425,0.20996368,95255.0,95242.0,0.20999053]
[1763254910633,0.43478052,95260.0,95226.0,0.02819241]
[1763254910634,0.08887913,95244.0,95226.0,0.02819241]
[1763254910841,0.323,95259.0,95243.0,0.22501821]
[1763254911043,0.08887913,95245.0,95241.0,0.012]
[1763254911246,0.77783404,95260.0,95242.0,0.20999098]
[1763254911452,0.08887913,95245.0,95241.0,0.012]
[1763254911884,0.08887913,95245.0,95242.0,0.02098]
[1763254912313,0.08887913,95260.0,95250.0,0.01503]
[1763254912517,0.323,95252.0,95244.0,0.02098]
[1763254912722,0.20998238,95247.0,95244.0,0.02098]
[1763254912935,0.55738255,95260.0,95244.0,0.02098]
[1763254913145,0.20997169,95251.0,95244.0,0.02098]
[1763254913349,0.08887913,95259.0,95248.0,0.02098]
[1763254913555,0.08887913,95259.0,95258.0,0.03601]
[1763254913761,0.08887913,95259.0,95244.0,0.00013558]
[1763254913971,0.01147,95245.0,95244.0,0.00013558]
[1763254914589,0.20997757,95249.0,95244.0,0.00013558]
[1763254915012,0.20996459,95255.0,95244.0,0.00013558]
[1763254915420,0.20998289,95246.0,95244.0,0.00013558]
[1763254916022,0.20997992,95248.0,95244.0,0.00013558]
[1763254916202,0.20998171,95247.0,95244.0,0.00013558]
[1763254916585,0.20996176,95256.0,95253.0,0.01503]
[1763254916789,0.20996389,95255.0,95253.0,0.02703]
[1763254916993,0.20994666,95263.0,95253.0,0.02703]
[1763254916994,0.08887913,95262.0,95253.0,0.02703]
[1763254917214,0.323,95257.0,95253.0,0.02703]
[1763254917668,0.01608,95254.0,95244.0,0.00013558]
[1763254917888,0.10034913,95245.0,95244.0,0.00013558]
[1763254918513,0.43942913,95245.0,95244.0,0.00013558]
[1763254921239,0.45887441,95245.0,95244.0,0.00013558]
[1763254921447,0.60596253,95245.0,95244.0,0.00013558]
[1763254921864,0.58651725,95245.0,95244.0,0.00013558]
[1763254922068,0.60596196,95245.0,95244.0,0.00013558]
[1763254922935,0.50229258,95245.0,95244.0,0.00013558]
[1763254923653,0.45887384,95245.0,95244.0,0.00013558]
[1763254924539,0.11979384,95245.0,95244.0,0.00013558]
[1763254924754,0.08887913,95245.0,95244.0,0.00013558]
[1763254925601,0.29882693,95262.0,95244.0,0.00013558]
[1763254925602,0.08887913,95262.0,95244.0,0.02272458]
[1763254925821,0.01952944,95261.0,95245.0,0.045769]
[1763254926043,0.08887913,95247.0,95246.0,0.022589]
[1763254927081,0.323,95266.0,95246.0,0.022589]
[1763254927321,0.323,95255.0,95247.0,0.022589]
[1763254927529,0.20997604,95250.0,95248.0,0.022589]
[1763254927741,0.20997222,95251.0,95249.0,0.022589]
[1763254927954,0.20997222,95251.0,95250.0,0.022589]
[1763254928156,0.53296316,95255.0,95250.0,0.022589]
[1763254928370,0.01049648,95270.0,95251.0,0.26731834]
[1763254928580,0.323,95264.0,95252.0,0.05078141]
[1763254928798,0.01955369,95263.0,95254.0,0.23815597]
[1763254929037,0.01955369,95263.0,95255.0,0.23255068]
[1763254929241,0.01955369,95263.0,95262.0,0.01627]
[1763254929440,0.01955369,95263.0,95262.0,0.022589]
[1763254930786,0.323,95272.0,95262.0,0.022589]
[1763254930977,0.323,95272.0,95271.0,0.01158]
[1763254931158,0.34255329,95272.0,95271.0,0.050439]
[1763254931608,0.01955329,95272.0,95271.0,0.050439]
[1763254931818,0.20990606,95281.0,95271.0,0.050439]
[1763254932022,0.323,95281.0,95272.0,0.022589]
[1763254932225,0.20991073,95279.0,95272.0,0.022589]
[1763254932434,0.20991703,95276.0,95272.0,0.022589]
[1763254932973,0.08987913,95273.0,95272.0,0.022589]
[1763254933188,0.08887913,95273.0,95272.0,0.022589]
[1763254933388,0.42771913,95273.0,95272.0,0.022589]
[1763254933633,0.55192411,95273.0,95272.0,0.022589]
[1763254934078,0.43241473,95273.0,95259.0,0.02819241]
[1763254934283,0.20993511,95268.0,95261.0,0.02819241]
[1763254934519,0.41287913,95273.0,95262.0,0.02258415]
[1763254934703,0.22945789,95272.0,95263.0,0.02258415]
[1763254934929,0.20993922,95266.0,95264.0,0.02258415]
[1763254935144,0.20993922,95266.0,95265.0,0.02258415]
[1763254935978,0.20992526,95272.0,95265.0,0.02258415]
[1763254936188,0.20993186,95270.0,95266.0,0.02258415]
[1763254936413,0.20992526,95272.0,95267.0,0.02258415]
[1763254936615,0.01953124,95271.0,95268.0,0.02258415]
[1763254936826,0.20992837,95271.0,95269.0,0.02258415]
[1763254937027,0.20992837,95271.0,95270.0,0.02258415]
[1763254937278,0.22945923,95271.0,95270.0,0.02258415]
[1763254937867,0.01953086,95271.0,95270.0,0.02258415]
[1763254939156,0.02053086,95271.0,95270.0,0.02258415]
[1763254939564,0.001,95271.0,95270.0,0.02258415]
[1763254940017,0.23046278,95271.0,95270.0,0.02258415]
[1763254940428,0.02053531,95271.0,95270.0,0.02258415]
[1763254940624,0.23046278,95271.0,95270.0,0.02258415]
[1763254941457,0.24630278,95271.0,95270.0,0.02258415]
[1763254941722,0.24630278,95271.0,95270.0,0.04356415]
[1763254941858,0.32180537,95271.0,95270.0,0.04356415]
[1763254942081,0.24630278,95271.0,95270.0,0.04356415]
[1763254943180,0.56930278,95271.0,95270.0,0.04356415]
[1763254943380,0.56930278,95271.0,95270.0,0.02098]
[1763254943598,0.20994509,95263.0,95262.0,0.02098]
[1763254943774,0.2294804,95263.0,95262.0,0.04356348]
[1763254943975,0.2517704,95263.0,95262.0,0.04356348]
[1763254944275,0.2359304,95263.0,95262.0,0.04356348]
[1763254945296,0.01953531,95263.0,95262.0,0.04356348]
[1763254945752,0.2294804,95263.0,95262.0,0.04356348]
[1763254946866,0.01953531,95263.0,95262.0,0.04356348]
[1763254947041,0.01953531,95263.0,95262.0,0.07179714]
[1763254947399,0.01952981,95263.0,95262.0,0.04356348]
[1763254947654,0.323,95278.0,95271.0,0.01242]
[1763254947854,0.20992306,95273.0,95272.0,0.02258348]
[1763254948058,0.55245374,95273.0,95272.0,0.02258348]
[1763254948379,0.34253068,95273.0,95272.0,0.02258348]
[1763254948810,0.55245374,95273.0,95272.0,0.02258348]
[1763254949184,0.34253068,95273.0,95272.0,0.02258348]
[1763254949411,0.55345374,95273.0,95272.0,0.02258348]
[1763254950620,0.56929374,95273.0,95272.0,0.02258348]